bitfinex/quotes_SOLUSD_20260118
["timestamp","ask_amount","ask_price","bid_price","bid_amount"]
[1768759414296,2.12431932,142.2,142.17,4.49796299]
[1768759414485,2.12431932,142.21,142.17,4.49796299]
[1768759415588,17.57839966,142.22,142.17,4.49796299]
[1768759415891,2.12431932,142.21,142.17,11.53176437]
[1768759416098,9.15518481,142.23,142.18,4.49796299]
[1768759416394,7.03057069,142.24,142.21,4.49796299]
[1768759417795,7.03057069,142.24,142.2,4.12829207]
[1768759417998,26.73081801,142.24,142.2,4.12829207]
[1768759419082,26.76094008,142.24,142.2,4.09829208]
[1768759421277,24.63662076,142.24,142.2,4.09829208]
[1768759421499,26.76094008,142.24,142.2,4.09829208]
[1768759423512,0.03012207,142.23,142.2,4.09829208]
[1768759430326,2.12431932,142.22,142.19,19.52829207]
[1768759430529,2.15444139,142.22,142.19,19.52829207]
[1768759430720,2.15444139,142.22,142.19,4.12829207]
[1768759430906,0.03012207,142.21,142.18,19.52829207]
[1768759431225,7.06197636,142.21,142.18,19.52829207]
[1768759433298,7.06197636,142.21,142.18,4.12829207]
[1768759433504,0.03012207,142.2,142.17,19.81255098]
[1768759434310,7.06197636,142.21,142.17,19.81255098]
[1768759434630,7.06197636,142.21,142.18,4.41255098]
[1768759435728,7.03185429,142.21,142.18,4.41255098]
[1768759437923,7.06197636,142.21,142.18,4.41255098]
[1768759441935,2.15803097,142.19,142.16,4.61255098]
[1768759442136,2.1279089,142.19,142.16,0.2]
[1768759442314,2.15803097,142.19,142.16,4.61255098]
[1768759443934,9.19118479,142.19,142.16,4.61255098]
[1768759460459,7.06327589,142.19,142.16,4.61255098]
[1768759460758,9.19118479,142.19,142.16,4.61255098]
[1768759462256,2.1279089,142.18,142.16,4.61255098]
[1768759472050,2.1279089,142.19,142.17,4.11573828]
[1768759472250,26.74478111,142.23,142.17,4.11573828]
[1768759472452,2.1279089,142.19,142.17,4.11573828]
[1768759474275,9.16096508,142.19,142.17,4.11573828]
[1768759481178,13.40375364,142.2,142.17,4.11573828]
[1768759481385,9.16037195,142.2,142.17,4.11573828]
[1768759481561,21.67398244,142.21,142.17,4.11573828]
[1768759481562,7.03205239,142.21,142.18,4.28119054]
[1768759483600,9.15996129,142.21,142.18,4.28119054]
[1768759483986,7.03205239,142.21,142.18,4.28119054]
[1768759490106,7.03205239,142.21,142.18,19.68119054]
[1768759491185,11.12601607,142.21,142.18,19.68119054]
[1768759496909,11.12601607,142.21,142.19,4.22391881]
[1768759497105,11.12601607,142.21,142.19,4.19391882]
[1768759499919,11.12601607,142.21,142.18,19.62391881]
[1768759502816,7.03205239,142.21,142.19,4.22391881]
[1768759503021,7.03205239,142.21,142.19,4.19391882]
[1768759504329,11.2047079,142.21,142.19,4.19391882]
[1768759505328,7.03205239,142.21,142.19,4.19391882]
[1768759510235,7.03205239,142.21,142.19,4.16391883]
[1768759510630,13.33198828,142.22,142.19,4.16391883]
[1768759511616,9.15933277,142.22,142.19,4.16391883]
[1768759511818,7.03102808,142.23,142.19,4.16391883]
[1768759512014,13.33154367,142.23,142.19,4.16391883]
[1768759512539,11.20368359,142.23,142.19,4.16391883]
[1768759512709,13.33154367,142.23,142.19,4.16391883]
[1768759516618,13.33154367,142.23,142.19,4.13391884]
[1768759517928,11.20368359,142.23,142.19,4.13391884]
[1768759518226,13.33154367,142.23,142.19,4.13391884]
[1768759520849,11.20368359,142.23,142.19,4.13391884]
[1768759521026,13.33154367,142.23,142.19,4.13391884]
[1768759521344,11.20368359,142.23,142.19,4.13391884]
[1768759521547,13.33154367,142.23,142.19,4.13391884]
[1768759522039,11.20368359,142.23,142.19,4.13391884]
[1768759522347,13.33154367,142.23,142.19,4.13391884]
[1768759532041,11.20368359,142.23,142.19,4.13391884]
[1768759532243,13.33154367,142.23,142.19,4.13391884]
[1768759534957,13.33154367,142.23,142.18,22.43333123]
[1768759536964,13.33154367,142.23,142.19,4.27596009]
[1768759537465,11.20368359,142.23,142.19,4.27596009]
[1768759537672,7.03056819,142.24,142.2,4.27596009]
[1768759537844,7.03056819,142.24,142.21,4.27596009]
[1768759538045,7.03056819,142.24,142.22,4.27596009]
[1768759538539,7.03056819,142.24,142.22,4.2459601]
[1768759545476,7.03056819,142.24,142.22,4.21596011]
[1768759551079,11.17336591,142.24,142.22,4.21596011]
[1768759551663,11.17336591,142.24,142.21,19.67596009]
[1768759554484,13.30122599,142.24,142.21,19.67596009]
[1768759554988,13.3004955,142.24,142.21,19.67596009]
[1768759555375,13.3004955,142.24,142.21,19.6459601]
[1768759566390,11.17336591,142.24,142.21,19.6459601]
[1768759566582,13.3004955,142.24,142.21,19.6459601]
[1768759567295,4.17607321,142.22,142.19,9.7]
[1768759567485,6.3032028,142.22,142.17,16.73343259]
[1768759567685,4.17607321,142.22,142.17,18.86056218]
[1768759567894,4.17607321,142.22,142.18,2.12712959]
[1768759569294,11.20773808,142.22,142.19,4.06441619]
[1768759585319,4.17607321,142.22,142.19,4.06441619]
[1768759585527,4.17607321,142.22,142.19,11.09721027]
[1768759592143,4.17607321,142.22,142.19,4.06441619]
[1768759599850,4.17607321,142.22,142.19,11.09723365]
[1768759602949,4.17607321,142.22,142.18,7.03333802]
[1768759603143,4.17607321,142.22,142.16,17.78525193]
[1768759603144,6.49036952,142.19,142.16,11.34440729]
[1768759603330,6.43036952,142.19,142.16,11.34440729]
[1768759604454,4.30323993,142.19,142.16,11.34440729]
[1768759607956,6.43036952,142.19,142.16,11.34440729]
[1768759611169,4.30323993,142.19,142.16,11.34440729]
[1768759616073,4.24323993,142.19,142.16,11.34440729]
[1768759617884,2.12837105,142.2,142.16,0.2]
[1768759618084,4.27429919,142.19,142.16,0.2]
[1768759618488,4.27429919,142.19,142.16,7.23430755]
[1768759618794,6.40267024,142.19,142.16,7.23430755]
[1768759620185,4.27429919,142.18,142.16,7.23430755]
[1768759620389,4.21429919,142.18,142.16,7.23430755]
[1768759623786,4.15429919,142.18,142.16,7.23430755]
[1768759628773,6.40267024,142.2,142.17,4.21847077]
[1768759629286,4.27429919,142.19,142.17,4.21847077]
[1768759629589,4.27429919,142.19,142.16,11.45277832]
[1768759681060,4.32472092,142.21,142.17,6.31565999]
[1768759681263,4.32472092,142.21,142.18,4.18728779]
[1768759682577,4.32472092,142.21,142.18,11.22053427]
[1768759684479,4.32472092,142.21,142.18,13.34890647]
[1768759684865,4.32472092,142.21,142.18,11.22053427]
[1768759685069,4.32472092,142.21,142.18,13.34890647]
[1768759686158,4.32472092,142.21,142.18,11.22053427]
[1768759687479,4.32472092,142.21,142.18,4.18728779]
[1768759687671,11.35664807,142.21,142.18,4.18728779]
[1768759689284,4.32472092,142.2,142.17,9.7]
[1768759691288,11.35742958,142.2,142.17,9.7]
[1768759691488,4.32472092,142.19,142.17,9.7]
[1768759694389,4.32472092,142.19,142.16,4.38728779]
[1768759700972,4.32472092,142.19,142.16,11.42157069]
[1768759713507,4.32472092,142.19,142.16,7.2342829]
[1768759713806,4.32472092,142.19,142.17,4.14337926]
[1768759714909,4.32472092,142.19,142.16,11.37766216]
[1768759716214,4.09307815,142.2,142.17,4.14337926]
[1768759717989,4.09307815,142.2,142.16,11.59780984]
[1768759727420,4.09307815,142.2,142.17,4.36352694]
[1768759729626,4.09307815,142.2,142.17,11.39704085]
[1768759731916,4.09307815,142.2,142.17,4.36352694]
[1768759738832,4.09307815,142.2,142.16,11.7168954]
[1768759739133,4.09307815,142.2,142.17,4.48277984]
[1768759750831,4.09307815,142.2,142.17,11.51643142]
[1768759751148,11.10837469,142.21,142.18,4.48277984]
[1768759752946,13.23638689,142.21,142.18,4.48277984]
[1768759755151,4.0765204,142.2,142.18,4.48277984]
[1768759757256,4.0765204,142.2,142.17,11.51643142]
[1768759768470,4.0765204,142.2,142.17,4.48277984]
[1768759774480,11.10890964,142.2,142.17,4.48277984]
[1768759774774,4.0765204,142.2,142.17,4.48277984]
[1768759789090,4.13351191,142.19,142.16,0.26766349]
[1768759789296,4.13351191,142.17,142.16,0.26766349]
[1768759789785,4.13351191,142.17,142.15,0.2]
[1768759791897,4.07351186,142.17,142.15,0.2]
[1768759802307,4.01351185,142.17,142.15,0.2]
[1768759803213,11.04738781,142.17,142.15,0.2]
[1768759803385,7.03387596,142.17,142.15,0.2]
[1768759804312,4.23317175,142.15,142.14,0.2]
[1768759804975,13.3969017,142.15,142.12,4.05120577]
[1768759805395,4.23317175,142.14,142.12,4.05120577]
[1768759808292,4.23317175,142.14,142.11,7.2367869]
[1768759809087,4.23317175,142.14,142.11,11.28799267]
[1768759820434,4.1731717,142.14,142.11,11.28799267]
[1768759822129,7.03540329,142.14,142.11,0.2]
[1768759822319,2.12890758,142.13,142.11,0.2]
[1768759822625,4.29905523,142.11,142.09,9.9]
[1768759822930,6.42796281,142.11,142.09,0.2]
[1768759823229,4.29905523,142.11,142.09,0.2]
[1768759823528,4.29905523,142.11,142.09,1e-08]
[1768759823752,24.62369652,142.14,142.08,0.2]
[1768759823753,4.29905523,142.1,142.08,0.2]
[1768759823920,9.24476503,142.1,142.08,0.2]
[1768759824741,16.28212698,142.1,142.08,0.2]
[1768759825244,4.29905523,142.09,142.07,0.2]
[1768759825447,13.66722225,142.09,142.07,0.2]
[1768759826226,20.70512823,142.09,142.07,0.2]
[1768759826528,4.29905523,142.08,142.07,0.2]
[1768759827542,16.406073,142.09,142.07,0.2]
[1768759827746,20.70512823,142.09,142.07,0.2]
[1768759828049,11.53831467,142.09,142.07,0.2]
[1768759828224,13.66722225,142.09,142.07,0.2]
[1768759828426,20.70505284,142.09,142.07,0.2]
[1768759829426,13.66722225,142.09,142.07,0.2]
[1768759830039,11.53831467,142.09,142.07,0.2]
[1768759830242,13.66722225,142.09,142.07,0.2]
[1768759833054,11.53831467,142.09,142.07,0.2]
[1768759833435,4.29905523,142.09,142.07,0.2]
[1768759836457,4.29905523,142.12,142.08,4.36701197]
[1768759837562,4.29905523,142.12,142.09,4.46365445]
[1768759839338,11.20077215,142.14,142.1,4.46365445]
[1768759839543,4.16526813,142.14,142.1,4.46365445]
[1768759839951,11.2002906,142.15,142.11,4.46365445]
[1768759847879,11.2002906,142.15,142.12,4.46365445]
[1768759848180,7.03502247,142.15,142.12,4.46365445]
[1768759849368,4.16526813,142.15,142.12,4.46365445]
[1768759852047,11.20011808,142.15,142.12,4.46365445]
[1768759854074,4.16526813,142.15,142.12,4.46365445]
[1768759854678,11.49653758,142.16,142.13,4.43840104]
[1768759855563,4.46203506,142.15,142.13,4.43840104]
[1768759857961,4.46203506,142.15,142.12,11.47451535]
[1768759860077,4.46203506,142.15,142.12,7.03611431]
[1768759860274,4.46203506,142.15,142.13,4.43840104]
[1768759861680,4.46203506,142.16,142.13,4.43840104]
[1768759861971,6.59127413,142.17,142.14,4.43840104]
[1768759862878,7.03432751,142.16,142.14,4.43840104]
[1768759863572,11.49636257,142.16,142.13,4.43840104]
[1768759869692,4.46203506,142.16,142.13,4.43840104]
[1768759871393,4.46203506,142.16,142.13,11.47411692]
[1768759872478,4.46203506,142.16,142.13,4.43840104]
[1768759873598,4.46203506,142.17,142.14,4.43840104]
[1768759874697,4.46203506,142.17,142.14,11.47354716]
[1768759882804,4.31656083,142.18,142.15,6.46783507]
[1768759882994,4.31656083,142.19,142.16,4.338596]
[1768759883687,4.31656083,142.19,142.16,6.46783507]
[1768759883892,17.52923907,142.22,142.16,6.46783507]
[1768759883893,4.31656083,142.2,142.17,4.338596]
[1768759888003,4.31656083,142.2,142.16,11.37253887]
[1768759888207,6.4457999,142.2,142.16,11.37253887]
[1768759888379,4.31656083,142.19,142.16,11.37253887]
[1768759890103,4.31656083,142.2,142.17,4.338596]
[1768759893506,6.4457999,142.2,142.17,4.338596]
[1768759894907,4.31656083,142.2,142.17,4.338596]
[1768759896686,4.31656083,142.2,142.17,34.338596]
[1768759897610,6.4457999,142.2,142.17,34.338596]
[1768759897908,4.31656083,142.2,142.17,34.338596]
[1768759898106,6.4457999,142.2,142.17,34.338596]
[1768759899587,4.31656083,142.2,142.17,34.338596]
[1768759902724,6.4457999,142.2,142.17,34.338596]
[1768759904123,6.4457999,142.2,142.17,41.37237894]
[1768759904727,4.31656083,142.2,142.17,41.37237894]
[1768759906525,6.4457999,142.2,142.17,41.37237894]
[1768759908823,4.39343009,142.19,142.17,30.0]
[1768759909125,6.52266916,142.19,142.17,30.0]
[1768759910238,4.39343009,142.17,142.12,21.75807635]
[1768759910394,6.52266916,142.15,142.12,11.20368352]
[1768759910594,4.39343009,142.15,142.12,11.20368352]
[1768759910799,2.12923907,142.14,142.11,11.20419645]
[1768759911015,6.46266916,142.14,142.11,4.16754744]
[1768759911228,6.46266916,142.14,142.11,11.20432462]
[1768759913925,6.46266916,142.14,142.11,4.16754744]
[1768759915020,4.39343009,142.14,142.11,4.16754744]
[1768759915223,6.52266916,142.14,142.11,4.16754744]
[1768759915601,6.52266916,142.14,142.11,11.20429808]
[1768759915800,4.39343009,142.14,142.11,11.20429808]
[1768759916721,6.24217995,142.15,142.12,4.15896295]
[1768759917735,6.24217995,142.15,142.12,11.19518105]
[1768759918830,6.24217995,142.16,142.13,4.15896295]
[1768759919710,6.24217995,142.16,142.13,11.1944548]
[1768759919911,2.12923907,142.16,142.14,4.15896295]
[1768759920505,6.24217995,142.17,142.14,4.15896295]
[1768759920909,4.11294088,142.17,142.14,4.15896295]
[1768759921720,6.24204021,142.18,142.14,4.15896295]
[1768759921901,6.24204021,142.18,142.15,11.19378532]
[1768759922810,4.11294088,142.2,142.16,4.15896295]
[1768759923011,6.24204021,142.2,142.16,4.15896295]
[1768759923521,2.12909933,142.2,142.16,4.15896295]
[1768759923726,4.11294088,142.19,142.16,4.15896295]
[1768759923926,4.11294088,142.19,142.16,11.19292954]
[1768759925333,7.03205765,142.21,142.17,4.15896295]
[1768759925334,4.11294088,142.21,142.17,4.15896295]
[1768759925629,6.24204021,142.21,142.17,4.15896295]
[1768759926224,4.11294088,142.2,142.17,4.15896295]
[1768759926628,4.11294088,142.2,142.17,11.19247093]
[1768759934714,4.11294088,142.21,142.18,4.15896295]
[1768759936543,4.11294088,142.21,142.18,11.19196961]
[1768759946541,4.11294088,142.21,142.18,20.89196961]
[1768759948042,4.11294088,142.21,142.18,20.86196962]
[1768759952541,4.11294088,142.21,142.18,11.16196962]
[1768759954349,4.11294088,142.21,142.18,4.12896296]
[1768759954649,6.24204021,142.21,142.18,4.12896296]
[1768759958042,4.11294088,142.21,142.18,4.12896296]
[1768759958224,6.24204021,142.21,142.18,20.86216144]
[1768759960648,4.11294088,142.21,142.18,20.86216144]
[1768759964244,4.11294088,142.21,142.18,11.16216144]
[1768759968953,4.11294088,142.21,142.19,4.17082627]
[1768759974660,4.11294088,142.21,142.18,4.25930482]
[1768759978769,4.11294088,142.21,142.18,20.99246025]
[1768759986185,6.24069975,142.21,142.18,20.99246025]
[1768759987069,4.11294088,142.21,142.18,20.99246025]
[1768759997985,4.11294088,142.21,142.19,4.25930482]
[1768759998782,4.11294088,142.21,142.18,20.99246025]
[1768760017398,6.24069975,142.21,142.18,20.99246025]
[1768760017581,4.11294088,142.21,142.18,20.99246025]
[1768760022717,4.4642602,142.25,142.2,4.14276044]
[1768760022918,6.59201907,142.24,142.2,4.14276044]
[1768760023290,6.59201907,142.23,142.2,4.14276044]
[1768760025321,13.6233461,142.23,142.2,4.14276044]
[1768760033017,4.23382379,142.22,142.2,4.14276044]
[1768760033817,9.1590859,142.23,142.2,4.14276044]
[1768760034710,13.39290969,142.23,142.2,4.14276044]
[1768760042931,13.39245245,142.23,142.2,4.14276044]
[1768760043524,11.26520351,142.22,142.2,4.14276044]
[1768760044419,7.03137972,142.22,142.2,4.14276044]
[1768760045225,11.26520351,142.22,142.2,4.14276044]
[1768760045522,7.03137972,142.22,142.2,4.14276044]
[1768760046726,11.26473428,142.23,142.2,4.14276044]
[1768760046912,13.39203591,142.23,142.2,4.14276044]
[1768760052209,13.39203591,142.23,142.2,13.84276044]
[1768760055130,30.96919965,142.23,142.2,13.84276044]
[1768760057636,30.96919965,142.23,142.17,22.43361081]
[1768760057808,30.96919965,142.23,142.17,24.43361081]
[1768760058906,28.84189802,142.23,142.17,24.43361081]
[1768760059111,30.96919965,142.23,142.17,24.43361081]
[1768760059740,30.96919965,142.23,142.18,1.63878016]
[1768760060432,6.36112542,142.21,142.18,1.63878016]
[1768760060837,6.36112542,142.21,142.18,3.63878016]
[1768760061237,4.23382379,142.21,142.18,3.63878016]
[1768760061534,6.36112542,142.22,142.18,2.0]
[1768760061740,35.14990153,142.25,142.14,9.16251715]
[1768760061741,4.23382379,142.2,142.14,9.16251715]
[1768760061912,4.23382379,142.2,142.15,22.43470363]
[1768760062117,6.36112542,142.2,142.15,22.43470363]
[1768760062938,26.73879166,142.21,142.15,22.43470363]
[1768760063235,26.73879166,142.21,142.15,24.56200526]
[1768760064140,30.99436729,142.21,142.15,24.56200526]
[1768760065245,30.99436729,142.21,142.15,22.43470363]
[1768760065542,30.99436729,142.21,142.15,24.56200526]
[1768760066742,30.99436729,142.21,142.15,24.96200526]
[1768760069722,30.99436729,142.21,142.15,22.83470363]
[1768760071837,11.28801871,142.2,142.15,22.83470363]
[1768760073920,11.28801871,142.2,142.15,24.96200526]
[1768760074431,11.28801871,142.2,142.15,22.83470363]
[1768760086738,4.31432873,142.19,142.15,22.83470363]
[1768760095556,4.31432873,142.19,142.15,7.43470363]
[1768760095853,4.31432873,142.19,142.15,22.83470363]
[1768760099761,4.31432873,142.19,142.15,7.43470363]
[1768760100060,4.31432873,142.19,142.15,22.83470363]
[1768760100756,4.25432873,142.19,142.15,22.83470363]
[1768760100949,4.25432873,142.19,142.15,42.60906118]
[1768760101146,4.25432873,142.19,142.16,0.06]
[1768760101959,4.25432873,142.19,142.16,0.46]
[1768760102766,4.25432873,142.19,142.17,7.03383273]
[1768760102950,4.25432873,142.19,142.17,7.43383273]
[1768760104481,4.19432873,142.19,142.17,7.43383273]
[1768760112144,4.19432873,142.19,142.18,17.57783413]
[1768760113746,4.19432873,142.19,142.18,17.97783413]
[1768760122160,4.19432873,142.19,142.18,0.4]
[1768760125570,4.19432873,142.19,142.17,14.06587722]
[1768760131178,4.19432873,142.19,142.17,14.46587722]
[1768760132560,4.19432873,142.19,142.17,7.43379915]
[1768760132884,4.19432873,142.19,142.18,7.03207807]
[1768760137075,4.19432873,142.19,142.18,7.43207807]
[1768760137282,4.23721667,142.2,142.18,7.43207807]
[1768760148985,4.23721667,142.2,142.18,0.4]
[1768760149784,4.23721667,142.2,142.18,0.37000001]
[1768760151371,4.23721667,142.2,142.13,21.71024201]
[1768760151372,4.23721667,142.18,142.13,21.71024201]
[1768760151583,4.23721667,142.17,142.12,4.12125798]
[1768760151906,2.12782315,142.16,142.13,7.03207807]
[1768760152201,2.12782315,142.16,142.12,7.03597643]
[1768760152403,2.12782315,142.16,142.12,11.20689052]
[1768760152981,7.03254857,142.18,142.12,11.20689052]
[1768760153180,2.12782315,142.16,142.13,4.17091409]
[1768760153697,6.61731766,142.16,142.13,4.17091409]
[1768760154375,4.48949451,142.16,142.12,11.20689052]
[1768760154575,4.48949451,142.15,142.12,11.20689052]
[1768760159403,4.48949451,142.15,142.13,4.17091409]
[1768760159698,4.4294945,142.15,142.13,4.17091409]
[1768760160910,7.03435501,142.16,142.13,4.17091409]
[1768760161606,11.52384952,142.16,142.13,4.17091409]
[1768760162303,4.48949451,142.15,142.12,11.2052691]
[1768760162496,4.48949451,142.15,142.13,4.17091409]
[1768760163100,4.4294945,142.15,142.13,4.17091409]
[1768760172510,4.4294945,142.15,142.12,4.17091409]
[1768760177924,11.46437149,142.15,142.12,4.17091409]
[1768760179429,4.4294945,142.15,142.12,4.17091409]
[1768760179632,4.4294945,142.15,142.06,3.87108863]
[1768760179633,4.48949451,142.12,142.08,4.17091409]
[1768760179805,6.61883668,142.12,142.09,30.0]
[1768760180007,4.48949451,142.12,142.1,4.17091409]
[1768760180206,4.48949451,142.12,142.09,4.17091409]
[1768760184019,4.42949451,142.12,142.09,4.17091409]
[1768760186726,4.42949451,142.12,142.09,11.20843801]
[1768760186924,4.35818725,142.13,142.1,4.22433289]
[1768760189419,4.35818725,142.13,142.11,4.22433289]
[1768760190434,4.35818725,142.15,142.11,4.22433289]
[1768760191632,4.35818725,142.15,142.11,11.2608109]
[1768760192145,4.35818725,142.16,142.12,4.22433289]
[1768760192930,4.35818725,142.16,142.12,11.26023498]
[1768760198529,4.3654215,142.15,142.12,11.26023498]
[1768760229645,4.48094187,142.16,142.13,4.3204111]
[1768760229867,17.58028303,142.21,142.15,4.3204111]
[1768760229868,2.12917342,142.21,142.15,4.3204111]
[1768760230066,24.61312388,142.23,142.17,4.3204111]
[1768760230274,2.12917342,142.22,142.17,4.3204111]
[1768760231852,4.48094187,142.21,142.17,11.35404364]
[1768760233556,4.48094187,142.21,142.17,41.35404364]
[1768760235580,4.48094187,142.2,142.17,41.35404364]
[1768760249691,4.48094187,142.2,142.17,43.48321706]
[1768760258689,4.48094187,142.2,142.18,4.24194287]
[1768760258893,4.07489395,142.21,142.18,41.27527388]
[1768760259497,4.07489395,142.24,142.19,4.24194287]
[1768760259795,4.07489395,142.23,142.2,4.24194287]
[1768760260784,4.07489395,142.23,142.2,34.24194287]
[1768760261895,4.07489395,142.22,142.2,34.24194287]
[1768760265003,4.03414501,142.21,142.17,4.24194287]
[1768760265193,4.03414501,142.21,142.17,11.27545632]
[1768760265503,4.03414501,142.21,142.18,4.24194287]
[1768760266304,4.03414501,142.21,142.18,11.27524163]
[1768760278427,11.06560355,142.22,142.19,4.38930585]
[1768760281821,4.03414501,142.22,142.19,11.42208542]
[1768760285126,17.57383279,142.26,142.2,4.38930585]
[1768760285351,2.12917342,142.25,142.2,4.38930585]
[1768760285820,4.03414501,142.24,142.2,4.38930585]
[1768760286225,4.03414501,142.24,142.2,11.42128763]
[1768760286402,4.03414501,142.24,142.2,41.42128763]
[1768760286604,4.03414501,142.24,142.21,4.38930585]
[1768760289726,11.06478745,142.24,142.21,4.38930585]
[1768760291120,4.03414501,142.23,142.2,4.38930585]
[1768760291814,4.03414501,142.22,142.19,4.38930585]
[1768760292012,6.16103646,142.23,142.19,4.38930585]
[1768760292415,4.03414501,142.22,142.19,4.38930585]
[1768760292908,13.19206518,142.23,142.19,4.38930585]
[1768760293427,4.03414501,142.22,142.19,4.38930585]
[1768760294230,9.15792017,142.23,142.19,4.38930585]
[1768760294411,13.19206518,142.23,142.19,4.38930585]
[1768760295628,13.19206518,142.23,142.18,4.38930585]
[1768760295629,4.03414501,142.22,142.18,4.38930585]
[1768760296606,6.16103646,142.22,142.18,4.38930585]
[1768760296808,4.03414501,142.21,142.18,4.38930585]
[1768760299230,4.03414501,142.21,142.18,11.42256897]
[1768760299447,5.44408856,142.29,142.2,4.38930585]
[1768760299448,6.16103646,142.24,142.2,4.38930585]
[1768760299620,4.03414501,142.23,142.2,4.38930585]
[1768760300534,4.03414501,142.23,142.2,11.4216348]
[1768760305327,4.03414501,142.23,142.2,4.38930585]
[1768760310420,4.03414501,142.22,142.19,4.37189886]
[1768760319047,4.03414501,142.22,142.19,11.40460202]
[1768760334151,4.03414501,142.22,142.19,4.37189886]
[1768760334354,11.06558119,142.22,142.19,4.37189886]
[1768760334553,4.03414501,142.22,142.19,4.37189886]
[1768760339854,4.03414501,142.22,142.19,11.40469972]
[1768760372964,4.03414501,142.21,142.17,7.03369037]
[1768760373165,4.03414501,142.21,142.18,30.0]
[1768760373554,4.03414501,142.2,142.18,30.0]
[1768760374172,4.03414501,142.2,142.16,11.22859113]
[1768760385484,7.03228954,142.21,142.17,4.06407665]
[1768760385683,13.19291287,142.22,142.18,4.06407665]
[1768760385877,9.15876786,142.22,142.18,4.06407665]
[1768760386184,4.03414501,142.21,142.18,4.06407665]
[1768760387689,4.03414501,142.21,142.18,11.09734835]
[1768760393494,6.1613405,142.21,142.18,4.06407665]
[1768760393910,4.03414501,142.2,142.17,4.18907473]
[1768760394090,4.03414501,142.19,142.16,11.2231885]
[1768760394400,4.03414501,142.19,142.17,30.0]
[1768760394607,4.03414501,142.18,142.17,29.97]
[1768760395083,24.6116251,142.21,142.17,29.97]
[1768760395084,2.12719549,142.2,142.17,29.97]
[1768760395281,4.03414501,142.19,142.17,29.97]
[1768760395483,4.03414501,142.19,142.16,11.22324075]
[1768760395787,4.03414501,142.19,142.16,4.18907473]
[1768760396695,6.1613405,142.19,142.16,4.18907473]
[1768760397597,13.19425787,142.19,142.16,4.18907473]
[1768760397802,4.03414501,142.18,142.15,11.22369191]
[1768760398103,4.03414501,142.17,142.14,4.18907473]
[1768760398404,4.03414501,142.16,142.15,30.0]
[1768760398792,4.03414501,142.17,142.15,30.0]
[1768760398980,4.03414501,142.18,142.15,11.22387815]
[1768760400477,13.19480632,142.18,142.15,4.18907473]
[1768760400681,4.03414501,142.16,142.13,4.18907473]
[1768760404509,11.0681269,142.17,142.13,4.18907473]
[1768760404811,6.1613405,142.18,142.14,4.18907473]
[1768760405609,4.03414501,142.18,142.14,4.18907473]
[1768760405804,4.03414501,142.18,142.14,11.2241714]
[1768760406098,4.03414501,142.18,142.15,4.18907473]
[1768760408909,13.19451233,142.19,142.15,4.18907473]
[1768760409103,11.06731684,142.19,142.16,4.18907473]
[1768760410010,11.06663508,142.2,142.16,4.18907473]
[1768760410202,4.03414501,142.19,142.16,4.18907473]
[1768760416715,9.16054994,142.2,142.16,4.18907473]
[1768760417320,13.19469495,142.2,142.16,4.18907473]
[1768760418839,9.16054994,142.2,142.17,4.18907473]
[1768760419132,2.12805987,142.22,142.17,4.18907473]
[1768760419503,6.16220488,142.22,142.17,4.18907473]
[1768760420606,6.16220488,142.22,142.18,4.18907473]
[1768760421533,13.19398142,142.22,142.18,4.18907473]
[1768760426828,9.160047,142.21,142.18,4.18907473]
[1768760428929,7.03198713,142.21,142.18,4.18907473]
[1768760431632,9.160047,142.21,142.18,4.18907473]
[1768760434113,13.19419201,142.21,142.18,4.18907473]
[1768760444155,11.06613214,142.21,142.18,4.18907473]
[1768760449544,4.03414501,142.21,142.18,4.18907473]
[1768760450550,11.06619793,142.21,142.18,4.18907473]
[1768760452451,13.1942578,142.21,142.18,4.18907473]
[1768760453648,11.06619793,142.21,142.18,4.18907473]
[1768760453857,13.1942578,142.21,142.18,4.18907473]
[1768760454858,11.06619793,142.21,142.18,4.18907473]
[1768760460061,11.0650105,142.23,142.19,4.32917883]
[1768760460354,32.97620162,142.24,142.19,4.32917883]
[1768760460355,11.06469318,142.24,142.19,4.32917883]
[1768760461652,6.16220488,142.27,142.21,4.32917883]
[1768760461837,4.03414501,142.26,142.21,4.32917883]
[1768760462239,4.03414501,142.25,142.21,4.32917883]
[1768760462440,6.16220488,142.25,142.21,4.32917883]
[1768760463240,6.16220488,142.25,142.22,4.32917883]
[1768760463552,4.03414501,142.25,142.22,4.32917883]
[1768760463744,11.06409971,142.25,142.22,4.32917883]
[1768760463947,6.16220488,142.24,142.21,34.32917883]
[1768760464150,4.03414501,142.23,142.21,30.0]
[1768760464352,6.16220488,142.23,142.21,30.0]
[1768760464554,6.16220488,142.23,142.2,4.32917883]
[1768760466265,4.03414501,142.23,142.2,4.32917883]
[1768760470152,13.19278319,142.24,142.21,4.32917883]
[1768760470542,4.03414501,142.24,142.21,11.36102695]
[1768760471372,4.03414501,142.24,142.21,4.32917883]
[1768760486383,4.03414501,142.24,142.21,11.36102987]
[1768760489477,4.03414501,142.24,142.21,4.32917883]
[1768760490264,13.1915303,142.24,142.21,4.32917883]
[1768760491081,4.03414501,142.22,142.19,11.48638492]